Cogmind - Beta 14 @@@ ROGUE MODE // 2025.03.10 @ 17:44:51 Player: canerib Result: Destroyed by S-27 Virus with Autogun Performance ------------- Evolutions (1) 500 Regions Visited (5) 1000 Robots Destroyed (33) 165 Value Destroyed (950) 950 Prototype IDs (3) 60 Alien Tech Used (0) 0 Bonus (300) 300 TOTAL SCORE: 2975 Bonus ------- Met Imprinter 300 Cogmind --------- Core Integrity 0/400 Matter 290/300 Energy 85/100 System Corruption 1% Temperature Cool (0) Movement Walking (130) Location -6/Proximity Caves Parts ------- > --- POWER (1) -------- (None) > --- PROPULSION (3) --- Titanium Leg Titanium Leg Titanium Leg > --- UTILITY (3) ------ Medium Storage Unit Visual Processing Unit Experimental Signal Interpreter > --- WEAPON (2) ------- Small Laser Plasma Rifle > --- INVENTORY (10) --- Compact Battery (200) Sensor Array Improved Terrain Scanner Utility Shielding Hacking Suite Advanced System Shield Peak State ------------ > --- POWER ------------ Light Deuterium Engine > --- PROPULSION ------- Titanium Leg Titanium Leg Flexi-carbon Leg > --- UTILITY ---------- Medium Storage Unit Visual Processing Unit Experimental Signal Interpreter > --- WEAPON ----------- Small Laser Heavy Missile Launcher > --- INVENTORY -------- Light Angular Momentum Engine Titanium Leg Titanium Leg Compact Battery Sensor Array Improved Terrain Scanner Utility Shielding Hacking Suite Advanced System Shield Beam Rifle [Rating: 33] Favorites ----------- Power Light Deuterium Engine Engine Light Deuterium Engine Propulsion Aluminum Leg Leg Aluminum Leg Utility Medium Storage Unit Device Heat Sink Storage Medium Storage Unit Processor Visual Processing Unit Protection Utility Shielding Weapon Small Laser Energy Gun Small Laser Ballistic Gun Assault Rifle Launcher Grenade Launcher Build | -11 -10 -9 -9 -7 -6 ------- Run | Yrd Mat Mat Min Zio Pro Slots Evolved 2 | . . 2 . . . Power . | . . . . . . Propulsion 1 | . . 1 . . . Utility 1 | . . 1 . . . Weapon . | . . . . . . Parts Attached 44 | 7 7 8 3 10 9 Power 8 | 1 3 2 . 1 1 Engine 8 | 1 3 2 . 1 1 Core . | . . . . . . Reactor . | . . . . . . Propulsion 13 | 2 . 4 . 5 2 Treads . | . . . . . . Leg 13 | 2 . 4 . 5 2 Wheel . | . . . . . . Hover . | . . . . . . Flight . | . . . . . . Utility 10 | 2 3 1 . 4 . Device 3 | 1 2 . . . . Storage 2 | 1 1 . . . . Processor 4 | . . . . 4 . Hackware . | . . . . . . Protection 1 | . . 1 . . . Artifact . | . . . . . . Weapon 13 | 2 1 1 3 . 6 Energy Gun 9 | 1 1 . 3 . 4 Energy Cannon . | . . . . . . Ballistic Gun 1 | 1 . . . . . Ballistic Cannon . | . . . . . . Launcher 3 | . . 1 . . 2 Special Weapon . | . . . . . . Impact Weapon . | . . . . . . Slashing Weapon . | . . . . . . Piercing Weapon . | . . . . . . Special Melee Weapon . | . . . . . . Unidentified Prototypes 3 | . . . . 3 . Parts Lost 10 | . 1 2 . . 7 Power 3 | . . 1 . . 2 Propulsion 2 | . . . . . 2 Utility 1 | . 1 . . . . Weapon 4 | . . 1 . . 3 Highest Loss Streak 4 | . 1 1 . . 4 To Critical Strikes . | . . . . . . Average Slot Usage (%) 99 | . 100 99 99 100 98 Engine 11 | . 14 10 11 11 11 Leg 32 | . 28 33 33 33 32 Device 4 | . 14 11 11 . . Storage 11 | . 14 11 11 11 11 Processor 11 | . . . . 17 22 Protection 4 | . . 11 11 4 . Energy Gun 18 | . 14 11 19 22 19 Ballistic Gun 3 | . 14 10 . . . Peak Build Rating 33 | 7 8 12 13 31 33 Average Rating 19 | 5 7 10 12 25 28 On Entrance 11 | . 7 8 12 13 31 Naked Turns . | . . . . . . Heaviest Build 26 | 14 19 26 26 26 24 Greatest Support 54 | 20 20 30 30 54 51 Greatest Overweight (x) 1 | 1 . . . . . Average Overweight (x) . | . . . . . . Largest Inventory Capacity 10 | 8 10 10 10 10 10 Average Capacity 9 | 7 9 10 10 10 10 Most Carried 10 | 2 9 10 10 10 10 Average Carried 8 | 1 5 7 9 9 8 Final Capacity 10 | 8 10 10 10 10 10 Final Carried 10 | 2 9 10 10 10 6 Class Distribution -------------------- 79% | Mutant 20% | Scavenger-Mutant Dominant Class ---------------- Mutant | -10/Materials Mutant | -9/Materials Scavenger-Mutant | -9/Mines Mutant | -7/Zion Mutant | -6/Proximity Caves Resources | -11 -10 -9 -9 -7 -6 ----------- Run | Yrd Mat Mat Min Zio Pro Matter Collected 909 | 285 75 260 50 90 149 Remotely . | . . . . . . Salvage Created 1098 | 121 150 467 108 . 252 Parts 68 | 5 12 33 8 . 10 Haulers Intercepted . | . . . . . . Recyclers Shooed . | . . . . . . Parts Field Recycled . | . . . . . . Retrieved Matter . | . . . . . . Parts Self-Destructed 10 | . . . . . 10 Prevented 1 | . . . . . 1 Kills | -11 -10 -9 -9 -7 -6 ------- Run | Yrd Mat Mat Min Zio Pro Combat Hostiles Destroyed 23 | . 3 12 2 . 6 Guns 18 | . 3 11 1 . 3 AOE 4 | . . 1 1 . 2 Classes Destroyed 10 | 2 3 4 . . 1 Worker 1 | . . 1 . . . Tunneler 4 | 2 . . 2 . . Recycler 1 | 1 . . . . . Operator 1 | . 1 . . . . Watcher 3 | . 1 2 . . . Swarmer 4 | . . 4 . . . Grunt 14 | . 3 6 1 . 4 Brawler 2 | . . 1 1 . . Sentry 2 | . . 1 . . 1 Programmer 1 | . . . . . 1 Best Kill Streak 4 | 2 2 4 2 . 3 Combat Bots Only 4 | . 1 4 2 . 3 Max Kills in Single Turn 3 | 1 1 3 1 . 1 Gunslinging . | . . . . . . Exploded 1 | . . 1 1 . 1 Melee . | . . . . . . Uniques/NPCs Destroyed . | . . . . . . Combat | -11 -10 -9 -9 -7 -6 -------- Run | Yrd Mat Mat Min Zio Pro Hostile Shots Fired 236 | . 29 81 9 . 117 Missed 78 | . 10 27 . . 41 Damage Taken 2127 | . 206 647 185 . 1089 Core 430 | . 20 160 43 . 207 Absorbed by Shields . | . . . . . . Redirected to Shielding 8 | . . 8 . . . Core Remaining (%) 96 | 100 92 . . . . Volleys Fired 98 | 5 27 35 9 3 19 Largest 2 | 2 2 2 2 2 2 Hottest 106 | 60 60 70 96 96 106 Shots Fired 187 | 10 54 70 13 6 34 Gun 177 | 10 54 68 11 6 28 Cannon . | . . . . . . Launcher 10 | . . 2 2 . 6 Special . | . . . . . . Kinetic 65 | 5 27 33 . . . Thermal 108 | 5 27 35 11 6 24 Explosive 10 | . . 2 2 . 6 Electromagnetic 4 | . . . . . 4 Robot Hit Streak 14 | 2 4 14 8 . 7 Robot Miss Streak 5 | 1 5 1 2 . 2 Penetration Max . | . . . . . . Secondary Targets 1 | . . . . . 1 Max Gunslinging Chain 1 | . . . . . 1 Shots Hit Robots 124 | 6 33 51 10 . 24 Core Hits 62 | 4 9 25 6 . 18 Critical Kills . | . . . . . . Critical Parts Destroyed . | . . . . . . Critical Strikes 2 | . . . . . 2 Burn 2 | . . . . . 2 Melee Attacks . | . . . . . . Impact . | . . . . . . Slashing . | . . . . . . Piercing . | . . . . . . Sneak Attacks . | . . . . . . Combat Hostiles . | . . . . . . Follow-up Attacks . | . . . . . . Damage Inflicted 2207 | 82 402 667 211 . 845 Guns 1446 | 82 402 585 91 . 286 Cannons . | . . . . . . Explosions 749 | . . 70 120 . 559 Melee . | . . . . . . Ramming 12 | . . 12 . . . Kinetic 600 | 50 271 279 . . . Thermal 773 | 32 131 306 91 . 213 Explosive 749 | . . 70 120 . 559 Electromagnetic 73 | . . . . . 73 Impact . | . . . . . . Slashing . | . . . . . . Piercing . | . . . . . . Highest Corruption 1 | . . . . . 1 Average Corruption 1 | . . . . . 1 Corruption Purged . | . . . . . . Corruption Blocked . | . . . . . . Effects 1 | . . . . . 1 Message Errors 1 | . . . . . 1 Overload Shots . | . . . . . . Overflow Damage . | . . . . . . Projectiles . | . . . . . . Explosions . | . . . . . . Melee . | . . . . . . Knockbacks . | . . . . . . Impact . | . . . . . . Kinetic . | . . . . . . Secondary . | . . . . . . Self-Inflicted Damage 67 | . . . 67 . . Shots 2 | . . . 2 . . Rammed . | . . . . . . Targets Rammed 2 | . . 2 . . . Kicked 2 | . . 2 . . . Crushed . | . . . . . . Highest Temperature 182 | . 66 . 9 60 182 Average Temperature 62 | . 33 . 6 27 85 Received Heat Transfer 738 | . 114 219 48 . 357 Siege Activations . | . . . . . . Robots Corrupted . | . . . . . . Combat Hostiles . | . . . . . . Parts Fried . | . . . . . . Impact Corruptions . | . . . . . . Robots Melted 1 | . . . . . 1 Combat Hostiles 1 | . . . . . 1 Parts Melted . | . . . . . . Heat Transferred 1919 | 75 300 700 212 . 632 Parts Sabotaged . | . . . . . . Parts Stolen . | . . . . . . Parts Stripped . | . . . . . . Power Chain Reactions . | . . . . . . Alert | -11 -10 -9 -9 -7 -6 ------- Run | Yrd Mat Mat Min Zio Pro Peak Influence 388 | 15 151 388 246 . . Initial 151 | . 9 63 151 . . Average 141 | 5 66 214 237 . . Maximum Alert Level 1 | . . 1 1 . . Low Security (%) 64 | 100 100 46 1 . . Level 1 35 | . . 53 98 . . Level 2 . | . . . . . . Level 3 . | . . . . . . Level 4 . | . . . . . . Level 5 . | . . . . . . High Security . | . . . . . . Max Security . | . . . . . . Squads Dispatched 2 | . 2 . . . . Investigation . | . . . . . . Extermination . | . . . . . . Reinforcement 2 | . 2 . . . . Assault . | . . . . . . Garrison . | . . . . . . Intercept . | . . . . . . Searches Triggered . | . . . . . . Construction Impeded . | . . . . . . Haulers Reinforced . | . . . . . . Active Scanning Responses . | . . . . . . Cargo Convoy Interrupts . | . . . . . . Stealth | -11 -10 -9 -9 -7 -6 --------- Run | Yrd Mat Mat Min Zio Pro Distress Signals 2 | . . 1 . . 1 Communications Jammed . | . . . . . . Distress Signals . | . . . . . . Times Spotted 43 | . 8 21 2 . 12 Peak Tracking Total 6 | . 2 6 1 . 5 Tactical Retreats 1 | . 1 . . . . Traps | -11 -10 -9 -9 -7 -6 ------- Run | Yrd Mat Mat Min Zio Pro Traps Triggered 2 | . 2 . . . . Indirectly . | . . . . . . Trap Hack Attempts . | . . . . . . Triggered . | . . . . . . Disarmed . | . . . . . . Reprogrammed . | . . . . . . Reused . | . . . . . . Traps Extracted . | . . . . . . Installed . | . . . . . . Triggered . | . . . . . . Machines | -11 -10 -9 -9 -7 -6 ---------- Run | Yrd Mat Mat Min Zio Pro Machines Disabled 1 | . . . 1 . . Max in Single Turn 1 | . . . 1 . . Machines Repaired . | . . . . . . Machines Dismantled . | . . . . . . Machines Sabotaged . | . . . . . . Overloaded Fab Kills . | . . . . . . Hacking | -11 -10 -9 -9 -7 -6 --------- Run | Yrd Mat Mat Min Zio Pro Machines Accessed 3 | . 1 2 . . . Terminals 3 | . 1 2 . . . Fabricators . | . . . . . . Repair Stations . | . . . . . . Recycling Units . | . . . . . . Scanalyzers . | . . . . . . Garrison Access . | . . . . . . Total Hacks 8 | . 2 6 . . . Successful 3 | . . 3 . . . Failed 5 | . 2 3 . . . Catastrophic . | . . . . . . Database Lockouts . | . . . . . . Manual 7 | . 2 3 . 2 . Terminals 8 | . 2 6 . . . Fabricators . | . . . . . . Repair Stations . | . . . . . . Recycling Units . | . . . . . . Scanalyzers . | . . . . . . Garrison Access . | . . . . . . Terminal Hacks 1 | . . 1 . . . Zone Layout 1 | . . 1 . . . Fabricator Hacks . | . . . . . . Repair Station Hacks . | . . . . . . Recycling Unit Hacks . | . . . . . . Scanalyzer . | . . . . . . Garrison Access Hacks . | . . . . . . Unauthorized Hacks 2 | . . 2 . . . Terminals 2 | . . 2 . . . Botnet 2 | . . 2 . . . Fabricators . | . . . . . . Repair Stations . | . . . . . . Recycling Units . | . . . . . . Scanalyzers . | . . . . . . Garrison Access . | . . . . . . Data Cores Recovered . | . . . . . . Used . | . . . . . . Hacking Detections 3 | . 1 2 . . . Full Trace Events . | . . . . . . Feedback Events . | . . . . . . Feedback Blocked . | . . . . . . Robot Schematics Acquired 3 | . . . . 3 . Robots Built . | . . . . . . Authchips . | . . . . . . Time . | . . . . . . Total Robot Build Rating . | . . . . . . Part Schematics Acquired 14 | . . . . 14 . Parts Built . | . . . . . . Authchips . | . . . . . . Time . | . . . . . . Total Part Build Rating . | . . . . . . Parts Repaired . | . . . . . . Time . | . . . . . . Parts Recycled . | . . . . . . Recycled Matter . | . . . . . . Retrieved Matter . | . . . . . . Retrieved Components . | . . . . . . Parts Scanalyzed . | . . . . . . Part Schematics Acquired . | . . . . . . Parts Damaged . | . . . . . . Bothacking | -11 -10 -9 -9 -7 -6 ------------ Run | Yrd Mat Mat Min Zio Pro Used RIF Installer . | . . . . . . Robots Hacked . | . . . . . . Non-combat . | . . . . . . Combat . | . . . . . . Robot Hacks Applied . | . . . . . . Relay Couplers Released . | . . . . . . Fabnet Peak Effective % . | . . . . . . Robots Rewired . | . . . . . . Allies Hacked . | . . . . . . Hacks Repelled . | . . . . . . Allies | -11 -10 -9 -9 -7 -6 -------- Run | Yrd Mat Mat Min Zio Pro Total Allies . | . . . . . . Largest Group . | . . . . . . Highest-Rated Group . | . . . . . . Highest-Rated Ally . | . . . . . . Total Orders . | . . . . . . Ally Attacks . | . . . . . . Total Damage . | . . . . . . Kills . | . . . . . . Allies Corrupted . | . . . . . . Allies Melted . | . . . . . . Intel | -11 -10 -9 -9 -7 -6 ------- Run | Yrd Mat Mat Min Zio Pro Robot Analysis Total . | . . . . . . Derelict Logs Recovered 4 | . . . . 3 1 Drone Launches . | . . . . . . Drone Recoveries . | . . . . . . Exploration | -11 -10 -9 -9 -7 -6 ------------- Run | Yrd Mat Mat Min Zio Pro Turns Passed 2526 | 90 366 312 175 1286 297 Spaces Moved 1697 | 54 212 135 118 1006 172 Core 4 | 4 . . . . . Treads . | . . . . . . Legs 1693 | 50 212 135 118 1006 172 Wheels . | . . . . . . Hover . | . . . . . . Flight . | . . . . . . Fastest Speed 50 | 50 120 120 120 120 130 Average Speed 122 | 117 120 120 120 122 130 Slowest Speed 130 | 120 120 120 120 126 130 Overloaded Moves . | . . . . . . Propulsion Burnouts . | . . . . . . Robots Hopped . | . . . . . . Cave-ins Triggered . | . . . . . . Exploration Rate (%) 38 | 4 52 17 42 85 32 Regions Visited 5 Branch Regions 3 Pre-discovered Areas 1 | . . . . . 1 Known Exits Taken 1 | . . . . 1 . Unknown Exits Taken 4 | 1 1 1 1 . . Scrap Searched 6 | . . . 2 3 1 Spaces Dug . | . . . . . . Terrain Destroyed 48 | . . 9 10 . 29 Melee . | . . . . . . Projectile . | . . . . . . AOE 48 | . . 9 10 . 29 Terrain Rammed . | . . . . . . Walls Destroyed . | . . . . . . Machines Disabled . | . . . . . . Actions | -11 -10 -9 -9 -7 -6 --------- Run | Yrd Mat Mat Min Zio Pro Total 1954 | 67 266 215 139 1059 208 Wait 73 | . 16 23 7 20 7 Move 1693 | 53 211 135 117 1005 172 Hop . | . . . . . . Pick Up 22 | 2 5 7 . 7 1 Fast Attach 19 | 7 5 . 1 5 1 Attach 11 | . . 4 1 1 5 Detach 2 | . . . 1 1 . Swap 14 | . 2 4 1 4 3 Drop 21 | . . 6 2 13 . Fire 98 | 5 27 35 9 3 19 Melee . | . . . . . . Ram . | . . . . . . Kick 1 | . . 1 . . . Crush . | . . . . . . Escape Stasis . | . . . . . . Rewire . | . . . . . . Trap . | . . . . . . Miscellaneous . | . . . . . . Route ------- -11/Scrapyard -10/Materials (discovered 3 exits: *Mat x2 / [*Min]) -9/Materials -9/Mines -7/Zion -6/Proximity Caves History --------- Turn | Location | Event 9 | -11/Scrapyard | Discovered new exit (range 16) 91 | -11/Scrapyard | Entered Materials 100 | -10/Materials | Discovered new exit (range 16) 318 | -10/Materials | Build established: Mutant 389 | -10/Materials | Discovered new exit (range 5) 454 | -10/Materials | Discovered new exit (range 4) 457 | -10/Materials | Entered another Materials area 457 | -9/Materials | Evolved 2 slots: Propulsion x1, Utility x1 754 | -9/Materials | Discovered new exit (range 8) 769 | -9/Materials | Entered Mines 773 | -9/Mines | Met a Derelict bent on vengeance 784 | -9/Mines | Core integrity fell below 50% 940 | -9/Mines | A Derelict revealed a hidden shortcut to a safe place 944 | -9/Mines | Entered Zion 990 | -7/Zion | Received a visual enhancement algorithm 1029 | -7/Zion | Build established: Scavenger-Mutant 1146 | -7/Zion | Learned Factory emergency access door positions 1326 | -7/Zion | Learned Factory terminal intel 1422 | -7/Zion | Found Prototype Processor 1422 | -7/Zion | Identified Exp. Armor Integrity Analyzer 1425 | -7/Zion | Found Prototype Processor 1425 | -7/Zion | Identified Exp. Signal Interpreter 1543 | -7/Zion | Build established: Mutant 1655 | -7/Zion | Met Imprinter 2022 | -7/Zion | Discovered new exit (range 17) 2103 | -7/Zion | Given A8's code to call for help 2229 | -7/Zion | Identified exit to Proximity Caves 2230 | -7/Zion | Entered Proximity Caves 2232 | -6/Proximity Caves | Attracted the attention of an 0b10 checkpoint 2444 | -6/Proximity Caves | Spotter reported a threat 2466 | -6/Proximity Caves | Core integrity fell below 20% 2518 | -6/Proximity Caves | Lost 4 parts (1p3w) 2519 | -6/Proximity Caves | Spotter reported a threat 2527 | -6/Proximity Caves | Destroyed by S-27 Virus with Autogun Last Messages --------------- malfunctions. 02493_ G-50 Soldier destroyed. 02494_ Field Laser fries itself beyond repair. 02495_ G-50 Soldier destroyed. 02497_ Acquired 43 matter. 02500_ Acquired 19 matter. 02503_ Acquired Plasma Rifle. 02504_ Acquired 10 matter. 02507_ Carbon-fiber Leg fries itself beyond repair. 02513_ 01|Z|XC8OVIH U8R9K7IBNIJIT1PC GE:E 02513_ The unstable cave ceiling collapses. 02517_ N-01 Spotter is scanning... 02519_ N-01 Spotter sends a signal. 02519_ ALERT: Unidentified potential threat approaching Complex 0b10. 02523_ Titanium Leg destroyed. 02525_ Acquired derelict log, extracted data. World map updated: -7/Zion. 02526_ Lgt. Angular Momentum Engine destroyed. Map ----- +----------------------------------------------------+ | ?????????????????????????????????????????????????? | | ?????????????????????????????????????????????????? | | ?????????????????????????????????????????????????? | | ?????????????????????????????????????????????????? | | ?????????????????????????????????????????????????? | | ?????????????????????????????????????????????????? | | ?????????????????????????????????????????????????? | | ?????????????????????????????????????????????????? | | ?????????????????????????? ?????????????????????? | | ?????????????????????????? ???????????????????? | | ?????????????????????????? ????????????????????? | | ?????????????????????????? ????????????????????? | | ?????????????????????????? ????????????????????? | | ?????????????????????????? ????????????????????? | | ?????????????????????????? #????????????????????? | | ?????????????????????????? #???????? ??????????? | | ????????????????????????## ####???? ???????????? | | ???????????????????????## ##?? #????????????? | | ??????????????????????## ## ##???????????? | | ?????????????????????## ##??????????? | | ????????????????????## ???????????? | | ???????????????????## ?????????????? | | ???????????????????# #???????????????? | | #####??????????????# #????????????????? | | # ##??????????????# #????????????????? | | #?????????####???# @ #????????????????? | | #?????????## #???## ## #????????????????? | | #????####?## ###### #?????#????????????????? | | #??#### ### ## #??????????????????????? | | #?## ##?????????????????????? | | ### ##????????????????????? | | ## ## #????????????????? | | #??????????????????? | | #??????????????????? | | #%ss # #?????????????????? | | % ??????????????? | | ## #### # s ### ?????????????? | | ## ##?# ###?? ?????????????? | | ## #??# #???? ????????????? | | %% #### s #?????# ????????????? | | ## ###?????? ????????????? | | ### #????????? ?????????????? | | #?# #????????? ##??????????????? | | ### ##?# #???????????????????????????? | | #?###??# ???????????????????????????? | | #????? ???????????????????????????? | | ### #?????#? ???????????????????????????? | | #?## #??????? ???????????????????????????? | | ##??## #???????? ??????????????????????????? | | #????# #??????? ??????????????????????????? | +----------------------------------------------------+ Best States ------------- Heat Dissipation 38 Energy Generation 18 Energy Capacity 265 Matter Stores 300 Matter Capacity 300 Sight Range 23 Terrain Scan Density 10 Utility Shielding 33 Evasion (%) 55 Item Schematics ----------------- Adv. Terrain Scanner | -7/Zion | Archive Energy Filter | -7/Zion | Archive Imp. System Restoration Module | -7/Zion | Archive Xenon Bombardment Thruster | -7/Zion | Archive Imp. Weapon Cycler | -7/Zion | Archive Angular Momentum Engine | -7/Zion | Archive Microactuators | -7/Zion | Archive Med. Treads | -7/Zion | Archive Hvy. Machine Gun | -7/Zion | Archive Remote Force Field | -7/Zion | Archive Imp. Shield Generator | -7/Zion | Archive Imp. Actuator Array | -7/Zion | Archive Flexi-carbon Leg | -7/Zion | Archive Gatling Laser | -7/Zion | Archive Robot Schematics ------------------ B-36 Bruiser | -7/Zion | Archive B-48 Gladiator | -7/Zion | Archive S-27 Virus | -7/Zion | Archive Fabricated ------------ Nothing Alien Tech Used ----------------- None Achievements -------------- None Challenges ------------ None Game ------ Seed BladeAngularRouter Manual? 0 Play Time 00:22:55 Cumulative 55.9 hours Start 2025.03.10 @ 17:21:54 End 2025.03.10 @ 17:44:51 Sessions 1 Manual Loads 0 Difficulty Rogue Special Mode None Game No. 79 Rogue 79 Adventurer 0 Explorer 0 Win Type - Total 1 Types 1/0/0/0/0/0/0/0/0 Lore% 24 Gallery% 40 Achievement% 36 Wizard Run 0 Options --------- Layout 1 ASCII 1 Keyboard 0 Movement Numpad Keybinds 0 Fullscreen 1 Font 24/Smallcaps Map View 50x35 Zoom Use 0% Tactical HUD 1 Map Filters NONE Filters NONE Steam 1 RUN: 7425f45a-0d26-4eab-a633-2906b3886d93